bitfinex/quotes_BTCUSD_20250614
["timestamp","ask_amount","ask_price","bid_price","bid_amount"]
[1749937317925,0.71122451,105320.0,105310.0,0.42485221]
[1749937318137,0.72071898,105320.0,105310.0,0.42485221]
[1749937318349,0.72071878,105320.0,105310.0,0.42485221]
[1749937318562,0.71180708,105320.0,105310.0,0.42485221]
[1749937318749,0.70289546,105320.0,105310.0,0.42485221]
[1749937318950,0.72071869,105320.0,105310.0,0.42485221]
[1749937319177,0.71180708,105320.0,105310.0,0.42485221]
[1749937319387,0.72071887,105320.0,105310.0,0.42485221]
[1749937319600,0.72071926,105320.0,105310.0,0.42485221]
[1749937319849,0.69398385,105320.0,105310.0,0.42485221]
[1749937320670,0.68448952,105320.0,105310.0,0.42485221]
[1749937320880,0.0750883,105320.0,105310.0,0.42485221]
[1749937321087,0.68448952,105320.0,105310.0,0.42485221]
[1749937321913,0.69398403,105320.0,105310.0,0.42485221]
[1749937322119,0.68448952,105320.0,105310.0,0.42485221]
[1749937323165,0.67499528,105320.0,105310.0,0.42485221]
[1749937323372,0.68448952,105320.0,105310.0,0.42485221]
[1749937324638,0.78063874,105320.0,105310.0,0.42485221]
[1749937325266,0.0279,105320.0,105310.0,0.42485221]
[1749937325483,0.60940122,105320.0,105310.0,0.42485221]
[1749937326725,0.06929316,105330.0,105320.0,0.21838098]
[1749937326926,1.29758903,105330.0,105320.0,0.25862098]
[1749937327621,1.30708264,105330.0,105320.0,0.25862098]
[1749937328267,1.29758903,105330.0,105320.0,0.25862098]
[1749937328642,1.30708264,105330.0,105320.0,0.25862098]
[1749937329542,1.32487398,105330.0,105320.0,0.25862098]
[1749937329800,1.30708264,105330.0,105320.0,0.25862098]
[1749937330570,1.32487399,105330.0,105320.0,0.25862098]
[1749937330729,1.30708264,105330.0,105320.0,0.25862098]
[1749937330907,1.30708264,105330.0,105320.0,0.21838098]
[1749937331314,1.32487399,105330.0,105320.0,0.21838098]
[1749937331522,1.30708264,105330.0,105320.0,0.21838098]
[1749937332151,1.33378568,105330.0,105320.0,0.21838098]
[1749937332324,1.32490603,105330.0,105320.0,0.21838098]
[1749937332529,1.34331131,105330.0,105320.0,0.21838098]
[1749937332758,1.33381739,105330.0,105320.0,0.21838098]
[1749937332952,0.10610342,105330.0,105320.0,0.21838098]
[1749937333130,1.30708264,105330.0,105320.0,0.21838098]
[1749937333346,1.31599423,105330.0,105320.0,0.21838098]
[1749937333703,1.31599403,105330.0,105320.0,0.21838098]
[1749937333927,1.33381663,105330.0,105320.0,0.21838098]
[1749937334088,1.32490527,105330.0,105320.0,0.21838098]
[1749937334303,1.33381658,105330.0,105320.0,0.21838098]
[1749937335103,1.31599395,105330.0,105320.0,0.21838098]
[1749937335327,1.33439897,105330.0,105320.0,0.21838098]
[1749937335536,1.33439899,105330.0,105320.0,0.21838098]
[1749937335773,1.34331031,105330.0,105320.0,0.25862098]
[1749937335998,0.06699152,105330.0,105320.0,0.25862098]
[1749937336204,1.27688264,105330.0,105320.0,0.25862098]
[1749937336420,1.31311039,105330.0,105320.0,0.25862098]
[1749937336630,1.3345991,105330.0,105320.0,0.25862098]
[1749937336841,1.31677643,105330.0,105320.0,0.25862098]
[1749937337052,1.3435103,105330.0,105320.0,0.25862098]
[1749937337261,1.34351032,105330.0,105320.0,0.25862098]
[1749937337486,1.33459899,105330.0,105320.0,0.25862098]
[1749937337699,1.34409281,105330.0,105320.0,0.25862098]
[1749937337909,1.33459903,105330.0,105320.0,0.25862098]
[1749937338177,1.34351049,105330.0,105320.0,0.25862098]
[1749937338386,1.33459931,105330.0,105320.0,0.25862098]
[1749937338808,1.32568777,105330.0,105320.0,0.25862098]
[1749937339010,1.35300446,105330.0,105320.0,0.25862098]
[1749937339217,1.29470562,105330.0,105320.0,0.25862098]
[1749937339424,1.30361705,105330.0,105320.0,0.25862098]
[1749937339632,1.29470562,105330.0,105320.0,0.25862098]
[1749937340259,1.28579409,105330.0,105320.0,0.25862098]
[1749937340467,1.29470546,105330.0,105320.0,0.25862098]
[1749937340684,1.30361682,105330.0,105320.0,0.25862098]
[1749937340923,0.64562835,105330.0,105320.0,0.25862098]
[1749937341121,0.6456282,105330.0,105320.0,0.28862098]
[1749937341302,0.63671676,105330.0,105320.0,0.31772098]
[1749937341541,0.62780556,105330.0,105320.0,0.31772098]
[1749937341767,0.6372989,105330.0,105320.0,0.31772098]
[1749937341972,0.65512112,105330.0,105320.0,0.31772098]
[1749937342176,0.65512113,105330.0,105320.0,0.31772098]
[1749937342385,0.62838763,105330.0,105320.0,0.31772098]
[1749937342597,0.63521194,105340.0,105330.0,0.21836025]
[1749937342805,1.27190215,105340.0,105330.0,0.37356025]
[1749937343018,1.07314088,105340.0,105330.0,0.37356025]
[1749937343434,1.06424287,105340.0,105330.0,0.37356025]
[1749937343842,1.09093682,105340.0,105330.0,0.37356025]
[1749937344296,0.48153562,105340.0,105330.0,0.37356025]
[1749937344502,1.06073676,105340.0,105330.0,0.37356025]
[1749937344709,1.06073654,105340.0,105330.0,0.37356025]
[1749937344889,1.04294063,105340.0,105330.0,0.37356025]
[1749937345114,1.06073591,105340.0,105330.0,0.37356025]
[1749937345329,1.09093589,105340.0,105330.0,0.37356025]
[1749937345540,1.09093605,105340.0,105330.0,0.37356025]
[1749937345803,1.07314061,105340.0,105330.0,0.37356025]
[1749937346055,1.09093607,105340.0,105330.0,0.37356025]
[1749937346287,1.08203834,105340.0,105330.0,0.37356025]
[1749937346772,1.09093606,105340.0,105330.0,0.37356025]
[1749937346965,1.08203833,105340.0,105330.0,0.37356025]
[1749937347195,1.09093603,105340.0,105330.0,0.37356025]
[1749937347463,1.04294059,105340.0,105330.0,0.37356025]
[1749937347675,1.04294058,105340.0,105330.0,0.37356025]
[1749937348100,1.06073601,105340.0,105330.0,0.37356025]
[1749937348302,1.05183829,105340.0,105330.0,0.37356025]
[1749937348506,1.06073599,105340.0,105330.0,0.37356025]
[1749937348712,1.03404287,105340.0,105330.0,0.37356025]
[1749937348919,1.05183828,105340.0,105330.0,0.37356025]
[1749937349131,1.06073597,105340.0,105330.0,0.37356025]
[1749937349333,1.04294057,105340.0,105330.0,0.37356025]
[1749937349754,1.06073597,105340.0,105330.0,0.37356025]
[1749937349957,1.06077546,105340.0,105330.0,0.37356025]
[1749937350145,1.06745861,105340.0,105330.0,0.37356025]
[1749937350300,1.06745861,105340.0,105330.0,0.41380025]
[1749937350765,1.05186461,105340.0,105330.0,0.41380025]
[1749937350988,1.06077549,105340.0,105330.0,0.41380025]
[1749937351226,1.07695171,105340.0,105330.0,0.41380025]
[1749937351464,1.25790225,105340.0,105330.0,0.40430691]
[1749937351674,1.24230822,105340.0,105330.0,0.41380043]
[1749937351878,1.26681314,105340.0,105330.0,0.41380043]
[1749937352078,1.24899138,105340.0,105330.0,0.41380043]
[1749937352212,1.23339734,105340.0,105330.0,0.41380043]
[1749937352418,1.25790226,105340.0,105330.0,0.41380043]
[1749937352624,1.0579657,105340.0,105330.0,0.42329386]
[1749937352868,1.05796547,105340.0,105330.0,0.4327872]
[1749937353078,1.0401437,105340.0,105330.0,0.4327872]
[1749937353556,1.03346062,105340.0,105330.0,0.4327872]
[1749937353787,1.01175283,105340.0,105330.0,0.52996566]
[1749937353987,1.03906677,105340.0,105330.0,0.50096566]
[1749937354212,1.03906672,105340.0,105330.0,0.4327872]
[1749937354426,1.03015615,105340.0,105330.0,0.4327872]
[1749937354632,1.01233503,105340.0,105330.0,0.4327872]
[1749937354846,1.06796668,105340.0,105330.0,0.4327872]
[1749937355054,1.05847379,105340.0,105330.0,0.4327872]
[1749937355282,1.04956324,105340.0,105330.0,0.4327872]
[1749937355507,1.04065269,105340.0,105330.0,0.4327872]
[1749937355733,1.05847378,105340.0,105330.0,0.4327872]
[1749937355948,1.04065269,105340.0,105330.0,0.4327872]
[1749937356153,1.04956324,105340.0,105330.0,0.4327872]
[1749937356369,1.05847378,105340.0,105330.0,0.4327872]
[1749937356581,1.04956324,105340.0,105330.0,0.4327872]
[1749937356783,1.03174215,105340.0,105330.0,0.4327872]
[1749937357030,1.05847378,105340.0,105330.0,0.4327872]
[1749937357235,1.04065269,105340.0,105330.0,0.4327872]
[1749937357447,1.05847378,105340.0,105330.0,0.4327872]
[1749937357665,1.03174215,105340.0,105330.0,0.4327872]
[1749937357875,1.04065269,105340.0,105330.0,0.4327872]
[1749937358299,1.05847378,105340.0,105330.0,0.4327872]
[1749937358637,1.04956324,105340.0,105330.0,0.4327872]
[1749937358837,1.03174215,105340.0,105330.0,0.4327872]
[1749937359039,1.05847378,105340.0,105330.0,0.4327872]
[1749937359746,1.03174215,105340.0,105330.0,0.4327872]
[1749937359943,1.0406527,105340.0,105330.0,0.4327872]
[1749937360169,1.0584738,105340.0,105330.0,0.4327872]
[1749937360676,0.43125149,105340.0,105330.0,0.4327872]
[1749937360925,1.04956326,105340.0,105330.0,0.4327872]
[1749937361140,1.05847383,105340.0,105330.0,0.4327872]
[1749937361330,1.04956327,105340.0,105330.0,0.4327872]
[1749937361548,1.05847383,105340.0,105330.0,0.4327872]
[1749937361761,1.04065271,105340.0,105330.0,0.4327872]
[1749937362370,1.05847383,105340.0,105330.0,0.4327872]
[1749937363047,1.03174215,105340.0,105330.0,0.4327872]
[1749937363282,1.05847383,105340.0,105330.0,0.4327872]
[1749937363529,1.04065271,105340.0,105330.0,0.4327872]
[1749937363777,0.4490726,105340.0,105330.0,0.4327872]
[1749937364031,1.03174215,105340.0,105330.0,0.4327872]
[1749937364287,1.06796671,105340.0,105330.0,0.4327872]
[1749937364551,1.05903085,105340.0,105330.0,0.42329386]
[1749937365201,1.06792876,105340.0,105330.0,0.42329386]
[1749937365442,1.21109434,105340.0,105330.0,0.42329386]
[1749937365669,1.22889016,105340.0,105330.0,0.42329386]
[1749937366538,1.22889017,105340.0,105330.0,0.42329386]
[1749937366779,1.22889019,105340.0,105330.0,0.42329386]
[1749937367023,1.21999227,105340.0,105330.0,0.42329386]
[1749937367266,1.21999212,105340.0,105330.0,0.42329386]
[1749937367489,1.22889001,105340.0,105330.0,0.42329386]
[1749937367665,1.21999217,105340.0,105330.0,0.42329386]
[1749937367913,1.2288901,105340.0,105330.0,0.42329386]
[1749937368436,1.22889008,105340.0,105330.0,0.42329386]
[1749937368708,1.2199922,105340.0,105330.0,0.42329386]
[1749937368912,1.21109433,105340.0,105330.0,0.42329386]
[1749937369128,1.22889019,105340.0,105330.0,0.42329386]
[1749937369335,1.21109434,105340.0,105330.0,0.41380043]
[1749937369544,1.22889017,105340.0,105330.0,0.41380043]
[1749937369961,1.21999226,105340.0,105330.0,0.41380043]
[1749937370183,0.02275902,105340.0,105330.0,0.72303326]
[1749937370393,0.62809898,105360.0,105350.0,0.28001877]
[1749937370604,1.60915239,105360.0,105350.0,0.43521877]
[1749937370853,1.33113559,105360.0,105350.0,0.43667445]
[1749937371112,1.67943721,105360.0,105350.0,0.42349075]
[1749937371368,1.77558639,105360.0,105350.0,0.42349075]
[1749937371621,1.76609548,105360.0,105350.0,0.42349075]
[1749937371834,1.16559049,105360.0,105350.0,0.42349075]
[1749937372061,1.16618498,105360.0,105350.0,0.42349075]
[1749937372295,1.17587014,105360.0,105350.0,0.42349075]
[1749937372532,1.17587016,105360.0,105350.0,0.42349075]
[1749937372768,1.18477912,105360.0,105350.0,0.42349075]
[1749937373034,1.17528831,105360.0,105350.0,0.42389075]
[1749937373303,1.19427005,105360.0,105350.0,0.42389075]
[1749937373557,1.16754314,105360.0,105350.0,0.42389075]
[1749937373815,1.16696116,105360.0,105350.0,0.42389075]
[1749937374303,1.19427032,105360.0,105350.0,0.42389075]
[1749937374539,1.1942702,105360.0,105350.0,0.42389075]
[1749937374785,0.584869,105360.0,105350.0,0.42389075]
[1749937375043,1.1853612,105360.0,105350.0,0.42389075]
[1749937375309,1.1630702,105360.0,105350.0,0.42389075]
[1749937375832,1.17256129,105360.0,105350.0,0.42389075]
[1749937376076,1.16307021,105360.0,105350.0,0.42389075]
[1749937376609,1.16307019,105360.0,105350.0,0.42389075]
[1749937376830,1.14525215,105360.0,105350.0,0.42389075]
[1749937377029,1.16307021,105360.0,105350.0,0.42389075]
[1749937377260,1.14525216,105360.0,105350.0,0.42389075]
[1749937377465,1.13634314,105360.0,105350.0,0.42389075]
[1749937377686,1.15416124,105360.0,105350.0,0.42389075]
[1749937377937,1.16307027,105360.0,105350.0,0.42389075]
[1749937378195,1.15357924,105360.0,105350.0,0.42389075]
[1749937378443,1.15357921,105360.0,105350.0,0.42389075]
[1749937378693,1.15416119,105360.0,105350.0,0.42389075]
[1749937378883,1.16307022,105360.0,105350.0,0.42389075]
[1749937379053,1.1630702,105360.0,105350.0,0.42389075]
[1749937379228,1.16307024,105360.0,105350.0,0.42389075]
[1749937379631,1.14525217,105360.0,105350.0,0.22781075]
[1749937379838,1.15416115,105360.0,105350.0,0.42409075]
[1749937380051,1.16307015,105360.0,105350.0,0.42409075]
[1749937380338,1.05801193,105360.0,105350.0,0.42405075]
[1749937380552,1.06692095,105360.0,105350.0,0.42405075]
[1749937380761,1.05801194,105360.0,105350.0,0.42405075]
[1749937380965,1.05801193,105360.0,105350.0,0.42405075]
[1749937381172,1.04019392,105360.0,105350.0,0.22781075]
[1749937381392,1.04910291,105360.0,105350.0,0.42405075]
[1749937381600,1.04019392,105360.0,105350.0,0.42405075]
[1749937381808,1.0580119,105360.0,105350.0,0.42405075]
[1749937382030,1.04019392,105360.0,105350.0,0.42405075]
[1749937382275,1.03969392,105360.0,105350.0,0.42405075]
[1749937382538,1.03020293,105360.0,105350.0,0.42405075]
[1749937383647,1.03969392,105360.0,105350.0,0.42405075]
[1749937383907,1.03969383,105360.0,105350.0,0.42405075]
[1749937384589,1.04918491,105360.0,105350.0,0.42405075]
[1749937385281,1.04918482,105360.0,105350.0,0.42405075]
[1749937385535,1.02018482,105360.0,105350.0,0.42405075]
[1749937386144,1.11633404,105360.0,105350.0,0.45265075]
[1749937386596,1.11633404,105360.0,105350.0,0.42405075]
[1749937388234,1.02018482,105360.0,105350.0,0.42405075]
[1749937389263,1.0296759,105360.0,105350.0,0.42405075]
[1749937391019,1.21001099,105360.0,105350.0,0.42405075]
[1749937391159,1.02018563,105360.0,105350.0,0.42405075]
[1749937391954,0.41078441,105360.0,105350.0,0.42405075]
[1749937392200,1.02018563,105360.0,105350.0,0.42405075]
[1749937393183,1.21001099,105360.0,105350.0,0.41419922]
[1749937393428,1.95567954,105360.0,105350.0,0.20537216]
[1749937393651,1.96618846,105360.0,105350.0,0.19588]
[1749937393914,1.94487015,105360.0,105350.0,0.19588]
[1749937394150,1.95375186,105360.0,105350.0,0.19588]
[1749937394394,1.96939838,105360.0,105350.0,0.19588]
[1749937394638,1.99068907,105360.0,105350.0,0.19588]
[1749937394891,1.98177977,105360.0,105350.0,0.19588]
[1749937395089,1.99959838,105360.0,105350.0,0.19588]
[1749937395269,1.98177975,105360.0,105350.0,0.19588]
[1749937395526,1.95380708,105360.0,105350.0,0.19588]
[1749937395810,1.96048906,105360.0,105350.0,0.19588]
[1749937396029,1.96939837,105360.0,105350.0,0.19588]
[1749937396286,1.96939836,105360.0,105350.0,0.19588]
[1749937396489,1.79473683,105360.0,105350.0,0.19588]
[1749937396695,1.5973286,105360.0,105350.0,0.19588]
[1749937396899,1.57950998,105360.0,105350.0,0.19588]
[1749937397103,1.60623788,105360.0,105350.0,0.19588]
[1749937397307,1.60623787,105360.0,105350.0,0.19588]
[1749937397515,1.51008864,105360.0,105350.0,0.19588]
[1749937397721,0.01898351,105350.0,105340.0,0.27783932]
[1749937397930,0.63787671,105350.0,105340.0,0.4963099]
[1749937398156,0.646786,105350.0,105340.0,0.4963099]
[1749937398370,0.65569529,105350.0,105340.0,0.4963099]
[1749937398576,0.65569531,105350.0,105340.0,0.4962699]
[1749937398800,0.66460461,105350.0,105340.0,0.4962699]
[1749937399005,0.64678601,105350.0,105340.0,0.4962699]
[1749937399222,0.05520339,105350.0,105340.0,0.4962699]
[1749937399436,0.63787671,105350.0,105340.0,0.4962699]
[1749937399658,0.67409632,105350.0,105340.0,0.4972299]
[1749937399867,0.6740957,105350.0,105340.0,0.4972299]
[1749937400075,0.67409566,105350.0,105340.0,0.4972299]
[1749937400283,0.66518637,105350.0,105340.0,0.4972299]
[1749937400494,0.67409566,105350.0,105340.0,0.4972299]
[1749937400900,0.66518637,105350.0,105340.0,0.4972299]
[1749937401033,0.67409566,105350.0,105340.0,0.4972299]
[1749937401239,0.65627708,105350.0,105340.0,0.4972299]
[1749937401442,0.67409566,105350.0,105340.0,0.4972299]
[1749937401641,0.68300495,105350.0,105340.0,0.3014699]
[1749937401866,0.70140622,105350.0,105340.0,0.4973899]
[1749937402381,0.70082353,105350.0,105340.0,0.4973899]
[1749937402584,0.69249693,105350.0,105340.0,0.4973899]
[1749937402792,0.90015888,105350.0,105340.0,0.4973899]
[1749937403002,0.27235746,105350.0,105340.0,0.29197747]
[1749937403164,0.67409674,105350.0,105340.0,0.2825299]
[1749937403369,0.70082459,105350.0,105340.0,0.4687899]
[1749937403609,0.70082464,105350.0,105340.0,0.2722699]
[1749937403812,0.50541006,105350.0,105340.0,0.4385299]
[1749937403986,0.47868216,105350.0,105340.0,0.4385299]
[1749937404475,0.48817423,105350.0,105340.0,0.4385299]
[1749937404866,0.00949198,105350.0,105340.0,0.44802215]
[1749937405065,0.6378768,105350.0,105340.0,0.4385299]
[1749937405723,0.6378768,105350.0,105340.0,0.4387299]
[1749937406119,0.64736887,105350.0,105340.0,0.4387299]
[1749937406748,0.22781102,105350.0,105340.0,0.42923747]
[1749937406956,0.8467044,105350.0,105340.0,0.43872999]
[1749937407345,0.8467044,105350.0,105340.0,0.24196999]
[1749937407551,0.8467044,105350.0,105340.0,0.43872999]
[1749937407949,0.83721269,105350.0,105340.0,0.42923747]
[1749937408562,0.83721269,105350.0,105340.0,0.21349198]
[1749937408742,0.81822882,105350.0,105340.0,0.02363058]
[1749937408988,0.81822882,105350.0,105340.0,0.04172]
[1749937408989,1.30428597,105350.0,105340.0,0.04172]
[1749937409190,1.30428597,105350.0,105340.0,0.001]
[1749937409191,1.40720524,105350.0,105340.0,0.001]
[1749937409543,1.40720524,105350.0,105340.0,0.157]
[1749937409544,1.40052773,105350.0,105340.0,0.157]
[1749937409796,1.40720558,105350.0,105340.0,0.157]
[1749937410453,1.40052773,105350.0,105340.0,0.157]
[1749937410653,1.40720559,105350.0,105340.0,0.157]
[1749937410873,1.40052773,105350.0,105340.0,0.156]
[1749937411935,1.40720559,105350.0,105340.0,0.156]
[1749937412132,1.4072044,105350.0,105340.0,0.156]
[1749937412986,1.31105518,105350.0,105340.0,0.156]
[1749937413750,1.30437851,105350.0,105340.0,0.156]
[1749937413964,1.31105517,105350.0,105340.0,0.156]
[1749937414166,0.19935447,105340.0,105330.0,0.24958691]
[1749937414320,0.80875569,105340.0,105330.0,0.48112485]
[1749937415090,0.80875569,105340.0,105330.0,0.51102485]
[1749937415512,0.81824821,105340.0,105330.0,0.51202485]
[1749937416347,2.07827345,105340.0,105330.0,0.001]
[1749937416559,2.07159733,105340.0,105330.0,0.15684]
[1749937416792,2.06939525,105340.0,105330.0,0.15684]
[1749937417000,2.05157233,105340.0,105330.0,0.15684]
[1749937417223,2.04488874,105340.0,105330.0,0.15684]
[1749937417440,2.06939528,105340.0,105330.0,0.15684]
[1749937417651,2.06048357,105340.0,105330.0,0.001]
[1749937417846,0.22888656,105320.0,105310.0,0.09824248]
[1749937418070,0.90016595,105320.0,105310.0,0.29531748]
[1749937418276,0.90016595,105320.0,105310.0,0.07609294]
[1749937419118,0.90016595,105320.0,105310.0,0.30263294]
[1749937419355,0.89067153,105320.0,105310.0,0.30259294]
[1749937420035,0.89067153,105320.0,105310.0,0.07609294]
[1749937420255,0.92988379,105320.0,105310.0,0.27277294]
[1749937420469,0.94770831,105320.0,105310.0,0.27277294]
[1749937420694,0.92988388,105320.0,105310.0,0.11681294]
[1749937420901,0.92297153,105320.0,105310.0,0.27277294]
[1749937421119,0.94970868,105320.0,105310.0,0.27277294]
[1749937421326,0.89267153,105320.0,105310.0,0.27277294]
[1749937421534,0.9194087,105320.0,105310.0,0.27277294]
[1749937421754,0.90158392,105320.0,105310.0,0.27277294]
[1749937422012,0.90158392,105320.0,105310.0,0.197115]
[1749937422215,0.90158392,105320.0,105310.0,0.000475]
[1749937422380,0.89267153,105320.0,105310.0,0.197115]
[1749937422553,0.90158392,105320.0,105310.0,0.041195]
[1749937422753,0.93188392,105320.0,105310.0,0.197115]
[1749937423820,0.92297153,105320.0,105310.0,0.197155]
[1749937424026,0.93188392,105320.0,105310.0,0.000475]
[1749937424435,0.93188392,105320.0,105310.0,0.197115]
[1749937425064,0.92297153,105320.0,105310.0,0.197115]
[1749937425304,0.93188392,105320.0,105310.0,0.197115]
[1749937425645,0.92297153,105320.0,105310.0,0.197115]
[1749937427705,0.20890621,105310.0,105300.0,0.0299]
[1749937427879,0.22791912,105300.0,105290.0,0.3681295]
[1749937428219,0.83782024,105300.0,105290.0,0.5431069]
[1749937428572,0.83782024,105300.0,105290.0,0.56210168]
[1749937428797,0.83782024,105300.0,105290.0,0.5715988]
[1749937429004,1.26447315,105300.0,105290.0,0.38669409]
[1749937429229,1.26447315,105300.0,105290.0,0.39619139]
[1749937429437,1.26447315,105300.0,105290.0,0.39615139]
[1749937430044,1.26447315,105300.0,105290.0,0.39615157]
[1749937430485,1.26447315,105300.0,105290.0,0.39715157]
[1749937430750,1.90337437,105300.0,105290.0,0.00214253]
[1749937430999,1.83572515,105300.0,105290.0,0.00214253]
[1749937431751,1.83572515,105300.0,105290.0,0.15638253]
[1749937431988,1.83572515,105300.0,105290.0,0.15642253]
[1749937433324,0.61692271,105300.0,105290.0,0.00014253]
[1749937433539,0.61692271,105300.0,105290.0,0.15642253]
[1749937433540,2.04811613,105300.0,105290.0,0.15642253]
[1749937433836,2.04811613,105300.0,105290.0,0.15638253]
[1749937434089,2.04811613,105300.0,105290.0,0.00014253]
[1749937434342,2.06265698,105300.0,105290.0,0.15638253]
[1749937434590,0.84385454,105300.0,105290.0,0.00014253]
[1749937434835,2.06665698,105300.0,105290.0,0.00014253]
[1749937435079,2.06665698,105300.0,105290.0,0.15642253]
[1749937437925,1.92746691,105300.0,105290.0,0.15642253]
[1749937438589,1.93415333,105300.0,105290.0,0.15642253]
[1749937438810,1.96335328,105300.0,105290.0,0.15642253]
[1749937439055,1.96335327,105300.0,105290.0,0.15642253]
[1749937439294,1.95666691,105300.0,105290.0,0.15642253]
[1749937439519,1.96335328,105300.0,105290.0,0.15642253]
[1749937439972,1.96335327,105300.0,105290.0,0.15642253]
[1749937440427,1.95666691,105300.0,105290.0,0.15642253]
[1749937440638,1.96335326,105300.0,105290.0,0.15642253]
[1749937440873,1.80841131,105300.0,105290.0,0.36536869]
[1749937441101,1.19901008,105300.0,105290.0,0.42596869]
[1749937441327,1.19232393,105300.0,105290.0,0.42596869]
[1749937441558,1.00907544,105300.0,105290.0,0.43546563]
[1749937441755,1.01857158,105300.0,105290.0,0.43546563]
[1749937441979,0.02068142,105300.0,105290.0,0.50747044]
[1749937442199,0.004,105300.0,105290.0,0.53170739]
[1749937442867,0.003,105300.0,105290.0,0.53170739]
[1749937443087,0.97788637,105310.0,105300.0,0.27902245]
[1749937443322,0.9096157,105310.0,105300.0,0.31986245]
[1749937443531,0.37739804,105310.0,105300.0,0.31986245]
[1749937443761,0.91911062,105310.0,105300.0,0.31986245]
[1749937444006,0.90070281,105310.0,105300.0,0.31986245]
[1749937444211,0.90170263,105310.0,105300.0,0.31986245]
[1749937444442,0.90470263,105310.0,105300.0,0.31986245]
[1749937444680,0.91361552,105310.0,105300.0,0.31986245]
[1749937444894,0.90470263,105310.0,105300.0,0.31986245]
[1749937445115,0.91419786,105310.0,105300.0,0.31986245]
[1749937446380,0.90470263,105310.0,105300.0,0.31986245]
[1749937446893,0.91361547,105310.0,105300.0,0.31986245]
[1749937447156,0.91419777,105310.0,105300.0,0.31986245]
[1749937447414,0.92311061,105310.0,105300.0,0.31986245]
[1749937447974,0.91419777,105310.0,105300.0,0.31986245]
[1749937448726,0.92311061,105310.0,105300.0,0.31986245]
[1749937448946,0.38139799,105310.0,105300.0,0.31986245]
[1749937449179,0.3908933,105310.0,105300.0,0.31986245]
[1749937449399,0.39089321,105310.0,105300.0,0.31986245]
[1749937449852,0.39089322,105310.0,105300.0,0.31986245]
[1749937450739,0.39089322,105310.0,105300.0,0.29057579]
[1749937450740,0.93260584,105310.0,105300.0,0.29057579]
[1749937450945,0.94210116,105310.0,105300.0,0.31906472]
[1749937451416,0.40038854,105310.0,105300.0,0.31906472]
[1749937451656,0.3914757,105310.0,105300.0,0.31906472]
[1749937451898,0.40038854,105310.0,105300.0,0.31906472]
[1749937452120,0.3914757,105310.0,105300.0,0.31906472]
[1749937452796,0.02299028,105310.0,105300.0,0.31906472]
[1749937453620,0.03248533,105310.0,105300.0,0.31906472]
[1749937453853,0.57419795,105310.0,105300.0,0.31906472]
[1749937454268,0.6559026,105310.0,105300.0,0.31906472]
[1749937455540,0.10469466,105310.0,105300.0,0.31906472]
[1749937455740,0.56470263,105310.0,105300.0,0.31906472]
[1749937456173,0.57419777,105310.0,105300.0,0.34168272]
[1749937456381,0.03248515,105310.0,105300.0,0.31906472]
[1749937456585,0.02299001,105310.0,105300.0,0.31906472]
[1749937456815,0.02299001,105310.0,105300.0,0.34168377]
[1749937457256,0.03248533,105310.0,105300.0,0.34168377]
[1749937457469,0.03248524,105310.0,105300.0,0.31906472]
[1749937457679,0.01349496,105310.0,105300.0,0.31906472]
[1749937457913,0.03248533,105310.0,105300.0,0.30084468]
[1749937458125,0.11396844,105310.0,105300.0,0.46692468]
[1749937458557,0.11396844,105310.0,105300.0,0.44430472]
[1749937459347,0.11396844,105310.0,105300.0,0.47510472]
[1749937459750,0.10447321,105310.0,105300.0,0.27842472]
[1749937459954,0.66517674,105310.0,105300.0,0.47506472]
[1749937461230,0.66517674,105310.0,105300.0,0.44426472]
[1749937461450,0.66517674,105310.0,105300.0,0.47506472]
[1749937462567,0.66517674,105310.0,105300.0,0.44426472]
[1749937463166,0.67467242,105310.0,105300.0,0.44426472]
[1749937463407,0.74238277,105310.0,105300.0,0.44426472]
[1749937463607,0.73288709,105310.0,105300.0,0.44426472]
[1749937465662,0.73288709,105310.0,105300.0,0.44414472]
[1749937466247,0.73288709,105310.0,105300.0,0.41414472]
[1749937467241,0.73288709,105310.0,105300.0,0.44484472]
[1749937467618,0.73288709,105310.0,105300.0,0.46749456]
[1749937468468,0.73288709,105310.0,105300.0,0.27097456]
[1749937468697,0.74238277,105310.0,105300.0,0.46697456]
[1749937469135,0.74238277,105310.0,105300.0,0.46693456]
[1749937470574,0.74238277,105310.0,105300.0,0.43623456]
[1749937472047,0.74238277,105310.0,105300.0,0.43615456]
[1749937472460,0.73288709,105310.0,105300.0,0.43615456]
[1749937473552,0.65140389,105310.0,105300.0,0.43615456]
[1749937473729,0.04198092,105310.0,105300.0,0.43615456]
[1749937473871,0.65140389,105310.0,105300.0,0.43615456]
[1749937475394,0.68090389,105310.0,105300.0,0.43615456]
[1749937476282,0.65140389,105310.0,105300.0,0.43615456]
[1749937478589,0.68090389,105310.0,105300.0,0.43615456]
[1749937478932,1.31661525,105310.0,105300.0,0.02264984]
[1749937479160,0.18993352,105300.0,105290.0,0.1995903]
[1749937479356,0.86945298,105300.0,105290.0,0.41805273]
[1749937479554,0.86945298,105300.0,105290.0,0.23179003]
[1749937479780,0.86945298,105300.0,105290.0,0.43704724]
[1749937480024,0.96175608,105300.0,105290.0,0.42754994]
[1749937480426,0.96275608,105300.0,105290.0,0.42754994]
[1749937481348,0.96275608,105300.0,105290.0,0.23178994]
[1749937481559,0.96275608,105300.0,105290.0,0.42755003]
[1749937481751,0.96275608,105300.0,105290.0,0.43704724]
[1749937481916,0.96275608,105300.0,105290.0,0.06328496]
[1749937482090,0.96275608,105300.0,105290.0,0.41805391]
[1749937482291,0.96275608,105300.0,105290.0,0.42755121]
[1749937482523,0.96275608,105300.0,105290.0,0.43704842]
[1749937482735,0.96275608,105300.0,105290.0,0.44654554]
[1749937482949,0.66186879,105300.0,105290.0,0.44654554]
[1749937483179,0.85180231,105300.0,105290.0,0.44654554]
[1749937484403,0.85180231,105300.0,105290.0,0.25078554]
[1749937484635,0.85180231,105300.0,105290.0,0.43704833]
[1749937485740,0.85180231,105300.0,105290.0,0.44654536]
[1749937486193,0.94795153,105300.0,105290.0,0.44654536]
[1749937486432,0.95744775,105300.0,105290.0,0.44654536]
[1749937486673,0.96694433,105300.0,105290.0,0.44654536]
[1749937486934,0.976441,105300.0,105290.0,0.44654536]
[1749937487356,0.78650748,105300.0,105290.0,0.4560423]
[1749937487597,0.976441,105300.0,105290.0,0.44654536]
[1749937489868,0.78650748,105300.0,105290.0,0.4560423]
[1749937490553,0.19573518,105300.0,105290.0,0.4560423]
[1749937490826,0.80515815,105300.0,105290.0,0.4560423]
[1749937492085,0.80515815,105300.0,105290.0,0.45601494]
[1749937492235,0.79566148,105300.0,105290.0,0.26025495]
[1749937492446,0.79566148,105300.0,105290.0,0.45601495]
[1749937492956,0.69951226,105300.0,105290.0,0.45601495]
[1749937493158,0.88944578,105300.0,105290.0,0.44651801]
[1749937493559,0.88944578,105300.0,105290.0,0.45601495]
[1749937493912,0.69951226,105300.0,105290.0,0.45601495]
[1749937495246,0.89894245,105300.0,105290.0,0.44651801]
[1749937496025,0.89894245,105300.0,105290.0,0.45601495]
[1749937496364,0.70900893,105300.0,105290.0,0.45601495]
[1749937496570,0.69951226,105300.0,105290.0,0.45601495]